[Event "Titled Tuesday Blitz March 29 Early 2022"]
[White "Salinas Herrera, Pablo"]
[Black "Tsydypov, Zhamsaran"]
[WhiteFideId "3407128"]
[BlackFideId "4108566"]
[WhiteElo "2541"]
[BlackElo "2614"]
[Result "1-0"]
[Round "05"]
[TimeControl "180+1"]
[Date "2022.03.29"]
[WhiteClock "0:00:19"]
[BlackClock "0:01:14"]

1. d4 {[%clk 0:03:00]}  Nf6 {[%clk 0:02:59]} 2. Nf3 {[%clk 0:03:00]}  e6 {[%clk 0:02:59]} 3. Bf4 {[%clk 0:03:00]}  d5 {[%clk 0:02:59]} 4. e3 {[%clk 0:03:00]}  Bd6 {[%clk 0:02:58]} 5. Nbd2 {[%clk 0:03:00]}  O-O {[%clk 0:02:56]} 6. Bd3 {[%clk 0:03:00]}  c5 {[%clk 0:02:54]} 7. c3 {[%clk 0:02:58]}  Nc6 {[%clk 0:02:54]} 8. Bg3 {[%clk 0:02:58]}  b6 {[%clk 0:02:52]} 9. Qe2 {[%clk 0:02:48]}  Bb7 {[%clk 0:02:48]} 10. Rd1 {[%clk 0:02:49]}  Ne7 {[%clk 0:02:40]} 11. Ne5 {[%clk 0:02:39]}  Ne4 {[%clk 0:02:37]} 12. Nxe4 {[%clk 0:02:33]}  dxe4 {[%clk 0:02:37]} 13. Ba6 {[%clk 0:02:33]}  Qc8 {[%clk 0:02:31]} 14. Bxb7 {[%clk 0:02:25]}  Qxb7 {[%clk 0:02:31]} 15. dxc5 {[%clk 0:02:25]}  Bxe5 {[%clk 0:02:27]} 16. Bxe5 {[%clk 0:02:25]}  bxc5 {[%clk 0:02:28]} 17. c4 {[%clk 0:02:20]}  Nc6 {[%clk 0:02:25]} 18. Bc3 {[%clk 0:02:20]}  Nb4 {[%clk 0:02:25]} 19. b3 {[%clk 0:01:37]}  Nd3+ {[%clk 0:02:22]} 20. Kf1 {[%clk 0:01:38]}  f5 {[%clk 0:02:22]} 21. g3 {[%clk 0:01:18]}  e5 {[%clk 0:02:22]} 22. f4 {[%clk 0:01:11]}  exf4 {[%clk 0:02:14]} 23. gxf4 {[%clk 0:01:09]}  Rad8 {[%clk 0:02:05]} 24. Rg1 {[%clk 0:01:09]}  g6 {[%clk 0:02:05]} 25. h4 {[%clk 0:01:02]}  Rd6 {[%clk 0:02:05]} 26. h5 {[%clk 0:01:02]}  Rfd8 {[%clk 0:01:48]} 27. hxg6 {[%clk 0:00:50]}  Rxg6 {[%clk 0:01:45]} 28. Rxg6+ {[%clk 0:00:27]}  hxg6 {[%clk 0:01:45]} 29. Qh2 {[%clk 0:00:28]}  Qh7 {[%clk 0:01:40]} 30. Qxh7+ {[%clk 0:00:28]}  Kxh7 {[%clk 0:01:41]} 31. Ke2 {[%clk 0:00:29]}  g5 {[%clk 0:01:28]} 32. fxg5 {[%clk 0:00:26]}  Kg6 {[%clk 0:01:29]} 33. Bf6 {[%clk 0:00:27]}  Rd6 {[%clk 0:01:28]} 34. Rh1 {[%clk 0:00:27]}  Ra6 {[%clk 0:01:26]} 35. Rh6+ {[%clk 0:00:22]}  Kf7 {[%clk 0:01:26]} 36. g6+ {[%clk 0:00:18]}  Kxf6 {[%clk 0:01:19]} 37. g7+ {[%clk 0:00:18]}  Kxg7 {[%clk 0:01:14]} 38. Rxa6 {[%clk 0:00:19]} 1-0


[Site "https://www.chess.com"]

[Event "Titled Tuesday Blitz March 29 Early 2022"]
[White "Sergienko, Sergey"]
[Black "Chernomordik, Pavel"]
[WhiteFideId "4115791"]
[BlackFideId "2804530"]
[WhiteElo "2193"]
[BlackElo "2249"]
[Result "0-1"]
[Round "05"]
[TimeControl "180+1"]
[Date "2022.03.30"]
[WhiteClock "0:00:49"]
[BlackClock "0:00:23"]

1. e4 {[%clk 0:02:59]}  g6 {[%clk 0:01:52]} 2. d4 {[%clk 0:02:55]}  Bg7 {[%clk 0:01:52]} 3. Nc3 {[%clk 0:02:54]}  d6 {[%clk 0:01:52]} 4. f4 {[%clk 0:02:54]}  a6 {[%clk 0:01:52]} 5. Nf3 {[%clk 0:02:52]}  b5 {[%clk 0:01:52]} 6. Bd3 {[%clk 0:02:50]}  Nd7 {[%clk 0:01:52]} 7. a4 {[%clk 0:02:45]}  b4 {[%clk 0:01:52]} 8. Ne2 {[%clk 0:02:45]}  c5 {[%clk 0:01:52]} 9. Be3 {[%clk 0:02:40]}  Qc7 {[%clk 0:01:48]} 10. O-O {[%clk 0:02:31]}  c4 {[%clk 0:01:47]} 11. Qd2 {[%clk 0:02:22]}  cxd3 {[%clk 0:01:46]} 12. cxd3 {[%clk 0:02:21]}  a5 {[%clk 0:01:40]} 13. Rac1 {[%clk 0:02:21]}  Qb8 {[%clk 0:01:38]} 14. d5 {[%clk 0:02:16]}  Ngf6 {[%clk 0:01:36]} 15. Ned4 {[%clk 0:02:11]}  Bb7 {[%clk 0:01:24]} 16. Nc6 {[%clk 0:02:07]}  Bxc6 {[%clk 0:01:24]} 17. dxc6 {[%clk 0:02:06]}  Nc5 {[%clk 0:01:24]} 18. Bxc5 {[%clk 0:01:59]}  dxc5 {[%clk 0:01:23]} 19. Rxc5 {[%clk 0:01:58]}  Qb6 {[%clk 0:01:22]} 20. Rc1 {[%clk 0:01:48]}  O-O {[%clk 0:01:21]} 21. Kh1 {[%clk 0:01:42]}  Rfd8 {[%clk 0:01:16]} 22. Qc2 {[%clk 0:01:34]}  Rac8 {[%clk 0:01:15]} 23. Qc4 {[%clk 0:01:28]}  Ng4 {[%clk 0:01:11]} 24. Ng5 {[%clk 0:01:11]}  Nf2+ {[%clk 0:00:48]} 25. Kg1 {[%clk 0:01:10]}  Nxd3 {[%clk 0:00:48]} 26. Qxf7+ {[%clk 0:01:08]}  Kh8 {[%clk 0:00:42]} 27. Qc4 {[%clk 0:00:56]}  Bd4+ {[%clk 0:00:36]} 28. Kf1 {[%clk 0:00:54]}  Qxc5 {[%clk 0:00:28]} 29. Nf7+ {[%clk 0:00:50]}  Kg7 {[%clk 0:00:27]} 30. Nxd8 {[%clk 0:00:49]}  Rxd8 {[%clk 0:00:23]} 0-1


[Site "https://www.chess.com"]

[Event "Titled Tuesday Blitz March 29 Early 2022"]
[White "Shohat, Yotam"]
[Black "Liyanage, Ranindu Dilshan"]
[WhiteFideId "2813955"]
[BlackFideId "9915834"]
[WhiteElo "2119"]
[BlackElo "1858"]
[Result "1-0"]
[Round "05"]
[TimeControl "180+1"]
[Date "2022.03.30"]
[WhiteClock "0:00:48"]
[BlackClock "0:01:14"]

1. e4 {[%clk 0:03:00]}  g6 {[%clk 0:02:53]} 2. d4 {[%clk 0:03:00]}  Bg7 {[%clk 0:02:54]} 3. Nc3 {[%clk 0:03:00]}  d6 {[%clk 0:02:55]} 4. f4 {[%clk 0:03:00]}  a6 {[%clk 0:02:55]} 5. Nf3 {[%clk 0:03:00]}  b5 {[%clk 0:02:55]} 6. Bd3 {[%clk 0:03:00]}  Bb7 {[%clk 0:02:54]} 7. a4 {[%clk 0:03:01]}  b4 {[%clk 0:02:54]} 8. Ne2 {[%clk 0:03:01]}  Nd7 {[%clk 0:02:54]} 9. O-O {[%clk 0:02:57]}  c5 {[%clk 0:02:52]} 10. c3 {[%clk 0:02:57]}  Ngf6 {[%clk 0:02:50]} 11. e5 {[%clk 0:02:56]}  Nd5 {[%clk 0:02:48]} 12. Ng5 {[%clk 0:02:16]}  e6 {[%clk 0:02:40]} 13. Ne4 {[%clk 0:01:55]}  O-O {[%clk 0:02:31]} 14. Nxd6 {[%clk 0:01:53]}  Bc6 {[%clk 0:02:31]} 15. c4 {[%clk 0:01:23]}  N5b6 {[%clk 0:02:22]} 16. Be3 {[%clk 0:01:22]}  cxd4 {[%clk 0:02:16]} 17. Nxd4 {[%clk 0:01:21]}  Qc7 {[%clk 0:02:11]} 18. Nxc6 {[%clk 0:00:59]}  Qxc6 {[%clk 0:02:12]} 19. a5 {[%clk 0:00:57]}  Nxe5 {[%clk 0:01:15]} 20. fxe5 {[%clk 0:00:55]}  Bxe5 {[%clk 0:01:16]} 21. Be4 {[%clk 0:00:55]}  Qxd6 {[%clk 0:01:16]} 22. Qxd6 {[%clk 0:00:55]}  Bxd6 {[%clk 0:01:17]} 23. axb6 {[%clk 0:00:55]}  Rab8 {[%clk 0:01:15]} 24. c5 {[%clk 0:00:54]}  Be5 {[%clk 0:01:15]} 25. c6 {[%clk 0:00:52]}  Bxb2 {[%clk 0:01:15]} 26. Rxa6 {[%clk 0:00:50]}  Bc3 {[%clk 0:01:13]} 27. c7 {[%clk 0:00:48]}  Rbc8 {[%clk 0:01:13]} 28. Bb7 {[%clk 0:00:48]}  b3 {[%clk 0:01:13]} 29. Bxc8 {[%clk 0:00:48]}  Rxc8 {[%clk 0:01:14]} 30. b7 {[%clk 0:00:48]}  Rxc7 {[%clk 0:01:14]} 31. b8=Q+ {[%clk 0:00:48]} 1-0


[Site "https://www.chess.com"]

[Event "Titled Tuesday Blitz March 29 Early 2022"]
[White "Shtyka, Sergey"]
[Black "Cupid, Kevin"]
[WhiteFideId "4138465"]
[BlackFideId "7700512"]
[WhiteElo "2014"]
[BlackElo "2096"]
[Result "1-0"]
[Round "05"]
[TimeControl "180+1"]
[Date "2022.03.30"]
[WhiteClock "0:00:42"]
[BlackClock "0:00:11"]

1. e4 {[%clk 0:02:53]}  c6 {[%clk 0:02:59]} 2. Nf3 {[%clk 0:02:53]}  d5 {[%clk 0:03:00]} 3. Nc3 {[%clk 0:02:53]}  Bg4 {[%clk 0:03:00]} 4. h3 {[%clk 0:02:53]}  Bxf3 {[%clk 0:02:59]} 5. Qxf3 {[%clk 0:02:54]}  Nf6 {[%clk 0:02:59]} 6. d3 {[%clk 0:02:54]}  e6 {[%clk 0:02:59]} 7. a3 {[%clk 0:02:54]}  Nbd7 {[%clk 0:02:59]} 8. g3 {[%clk 0:02:54]}  Bc5 {[%clk 0:02:44]} 9. Bg2 {[%clk 0:02:54]}  a5 {[%clk 0:02:44]} 10. O-O {[%clk 0:02:54]}  dxe4 {[%clk 0:02:39]} 11. dxe4 {[%clk 0:02:52]}  O-O {[%clk 0:02:38]} 12. Rd1 {[%clk 0:02:49]}  Qc7 {[%clk 0:02:36]} 13. Bf4 {[%clk 0:02:47]}  e5 {[%clk 0:02:35]} 14. Be3 {[%clk 0:02:43]}  Rfe8 {[%clk 0:02:32]} 15. Rd2 {[%clk 0:02:39]}  a4 {[%clk 0:02:30]} 16. Rad1 {[%clk 0:02:37]}  Bxe3 {[%clk 0:02:17]} 17. Qxe3 {[%clk 0:02:37]}  Nf8 {[%clk 0:02:17]} 18. Bf1 {[%clk 0:02:28]}  Ne6 {[%clk 0:02:14]} 19. Bc4 {[%clk 0:02:25]}  Nd4 {[%clk 0:01:54]} 20. Ne2 {[%clk 0:02:24]}  Qb6 {[%clk 0:01:35]} 21. Nxd4 {[%clk 0:02:13]}  exd4 {[%clk 0:01:31]} 22. Qxd4 {[%clk 0:02:13]}  Qxd4 {[%clk 0:01:29]} 23. Rxd4 {[%clk 0:02:14]}  b5 {[%clk 0:01:13]} 24. Bd3 {[%clk 0:01:25]}  c5 {[%clk 0:01:12]} 25. Rd6 {[%clk 0:01:24]}  c4 {[%clk 0:01:10]} 26. Bf1 {[%clk 0:01:21]}  Nxe4 {[%clk 0:01:09]} 27. Rd7 {[%clk 0:01:21]}  Nc5 {[%clk 0:01:01]} 28. R7d5 {[%clk 0:01:20]}  Rac8 {[%clk 0:00:59]} 29. Kg2 {[%clk 0:01:16]}  Kf8 {[%clk 0:00:46]} 30. R1d2 {[%clk 0:01:15]}  g6 {[%clk 0:00:45]} 31. Re2 {[%clk 0:01:11]}  Rxe2 {[%clk 0:00:43]} 32. Bxe2 {[%clk 0:01:11]}  Ke7 {[%clk 0:00:44]} 33. Bf3 {[%clk 0:01:10]}  Ke6 {[%clk 0:00:43]} 34. Kf1 {[%clk 0:01:08]}  f5 {[%clk 0:00:43]} 35. Ke2 {[%clk 0:01:06]}  Rc7 {[%clk 0:00:39]} 36. Ke3 {[%clk 0:01:05]}  Kf6 {[%clk 0:00:25]} 37. h4 {[%clk 0:01:05]}  Ke6 {[%clk 0:00:25]} 38. Kd4 {[%clk 0:00:56]}  Nb7 {[%clk 0:00:18]} 39. Rxb5 {[%clk 0:00:55]}  Nd6 {[%clk 0:00:18]} 40. Bd5+ {[%clk 0:00:52]}  Ke7 {[%clk 0:00:18]} 41. Rb6 {[%clk 0:00:49]}  c3 {[%clk 0:00:18]} 42. bxc3 {[%clk 0:00:48]}  h6 {[%clk 0:00:12]} 43. c4 {[%clk 0:00:47]}  g5 {[%clk 0:00:12]} 44. c5 {[%clk 0:00:46]}  Nc8 {[%clk 0:00:12]} 45. Rxh6 {[%clk 0:00:45]}  gxh4 {[%clk 0:00:11]} 46. gxh4 {[%clk 0:00:42]} 1-0


[Site "https://www.chess.com"]

[Event "Titled Tuesday Blitz March 29 Early 2022"]
[White "Srinath, Rao S.V."]
[Black "Wu, Sibo"]
[WhiteFideId "5028876"]
[BlackFideId "8606048"]
[WhiteElo "2181"]
[BlackElo "2336"]
[Result "1/2-1/2"]
[Round "05"]
[TimeControl "180+1"]
[Date "2022.03.30"]
[WhiteClock "0:01:32"]
[BlackClock "0:00:10"]

1. e4 {[%clk 0:03:00]}  c5 {[%clk 0:02:59]} 2. Nf3 {[%clk 0:02:58]}  Nc6 {[%clk 0:03:00]} 3. c3 {[%clk 0:02:56]}  d5 {[%clk 0:02:59]} 4. exd5 {[%clk 0:02:57]}  Qxd5 {[%clk 0:02:59]} 5. d4 {[%clk 0:02:58]}  e6 {[%clk 0:03:00]} 6. Be2 {[%clk 0:02:57]}  Nf6 {[%clk 0:03:00]} 7. O-O {[%clk 0:02:58]}  Be7 {[%clk 0:02:55]} 8. Be3 {[%clk 0:02:58]}  cxd4 {[%clk 0:02:54]} 9. Nxd4 {[%clk 0:02:57]}  Nxd4 {[%clk 0:02:50]} 10. Bxd4 {[%clk 0:02:58]}  O-O {[%clk 0:02:50]} 11. Nd2 {[%clk 0:02:56]}  e5 {[%clk 0:02:43]} 12. Be3 {[%clk 0:02:55]}  Bf5 {[%clk 0:02:37]} 13. Bc4 {[%clk 0:02:54]}  Qd7 {[%clk 0:02:35]} 14. h3 {[%clk 0:02:51]}  Bd3 {[%clk 0:02:32]} 15. Bxd3 {[%clk 0:02:50]}  Qxd3 {[%clk 0:02:32]} 16. Re1 {[%clk 0:02:49]}  Rfd8 {[%clk 0:02:28]} 17. Qe2 {[%clk 0:02:46]}  Qxe2 {[%clk 0:02:15]} 18. Rxe2 {[%clk 0:02:47]}  Nd5 {[%clk 0:02:16]} 19. Rae1 {[%clk 0:02:44]}  Nxe3 {[%clk 0:02:12]} 20. fxe3 {[%clk 0:02:42]}  b5 {[%clk 0:02:12]} 21. e4 {[%clk 0:02:34]}  Rd3 {[%clk 0:02:02]} 22. Kh2 {[%clk 0:02:29]}  Rad8 {[%clk 0:01:59]} 23. Nf1 {[%clk 0:02:29]}  a5 {[%clk 0:01:56]} 24. Ne3 {[%clk 0:02:28]}  Bh4 {[%clk 0:01:42]} 25. g3 {[%clk 0:02:25]}  Bg5 {[%clk 0:01:40]} 26. Nd5 {[%clk 0:02:23]}  f5 {[%clk 0:01:31]} 27. h4 {[%clk 0:02:20]}  fxe4 {[%clk 0:01:29]} 28. hxg5 {[%clk 0:02:20]}  R8xd5 {[%clk 0:01:28]} 29. Rxe4 {[%clk 0:02:20]}  Kf7 {[%clk 0:01:13]} 30. Kh3 {[%clk 0:02:07]}  Ke6 {[%clk 0:01:07]} 31. a4 {[%clk 0:02:06]}  Rd2 {[%clk 0:00:39]} 32. b4 {[%clk 0:02:00]}  bxa4 {[%clk 0:00:37]} 33. c4 {[%clk 0:01:59]}  R5d4 {[%clk 0:00:33]} 34. Rxe5+ {[%clk 0:01:59]}  Kf7 {[%clk 0:00:34]} 35. bxa5 {[%clk 0:01:50]}  Rxc4 {[%clk 0:00:33]} 36. Re7+ {[%clk 0:01:49]}  Kg6 {[%clk 0:00:33]} 37. R1e6+ {[%clk 0:01:46]}  Kxg5 {[%clk 0:00:26]} 38. Rxg7+ {[%clk 0:01:46]}  Kf5 {[%clk 0:00:26]} 39. Rh6 {[%clk 0:01:44]}  Rc1 {[%clk 0:00:24]} 40. Rh5+ {[%clk 0:01:43]}  Kf6 {[%clk 0:00:24]} 41. Rgxh7 {[%clk 0:01:42]}  a3 {[%clk 0:00:21]} 42. R7h6+ {[%clk 0:01:41]}  Kg7 {[%clk 0:00:21]} 43. Rh7+ {[%clk 0:01:40]}  Kg6 {[%clk 0:00:22]} 44. R5h6+ {[%clk 0:01:35]}  Kg5 {[%clk 0:00:21]} 45. Rh5+ {[%clk 0:01:35]}  Kg6 {[%clk 0:00:21]} 46. Kh4 {[%clk 0:01:33]}  Rd4+ {[%clk 0:00:18]} 47. g4 {[%clk 0:01:32]}  Rh1+ {[%clk 0:00:17]} 48. Kg3 {[%clk 0:01:32]}  Rxh5 {[%clk 0:00:15]} 49. Rxh5 {[%clk 0:01:33]}  a2 {[%clk 0:00:12]} 50. Rh1 {[%clk 0:01:31]}  Ra4 {[%clk 0:00:13]} 51. Ra1 {[%clk 0:01:30]}  Rxa5 {[%clk 0:00:12]} 52. Kf3 {[%clk 0:01:31]}  Kg5 {[%clk 0:00:12]} 53. Ke3 {[%clk 0:01:31]}  Kxg4 {[%clk 0:00:12]} 54. Kd3 {[%clk 0:01:31]}  Kf4 {[%clk 0:00:13]} 55. Kc3 {[%clk 0:01:32]}  Ke3 {[%clk 0:00:13]} 56. Kb4 {[%clk 0:01:31]}  Ra8 {[%clk 0:00:13]} 57. Kb3 {[%clk 0:01:31]}  Kd3 {[%clk 0:00:12]} 58. Rd1+ {[%clk 0:01:31]}  Ke2 {[%clk 0:00:10]} 59. Ra1 {[%clk 0:01:31]}  Kd2 {[%clk 0:00:10]} 60. Rxa2+ {[%clk 0:01:31]}  Rxa2 {[%clk 0:00:10]} 61. Kxa2 {[%clk 0:01:32]} 1/2-1/2


[Site "https://www.chess.com"]

[Event "Titled Tuesday Blitz March 29 Early 2022"]
[White "Tan, Jun Ying"]
[Black "Martin, Lewis"]
[WhiteFideId "5710413"]
[BlackFideId "410551"]
[WhiteElo "1827"]
[BlackElo "2145"]
[Result "1-0"]
[Round "05"]
[TimeControl "180+1"]
[Date "2022.03.30"]
[WhiteClock "0:00:22"]
[BlackClock "0:00:10"]

1. Nf3 {[%clk 0:03:00]}  Nf6 {[%clk 0:02:58]} 2. b3 {[%clk 0:03:00]}  c5 {[%clk 0:02:56]} 3. Bb2 {[%clk 0:02:59]}  Nc6 {[%clk 0:02:56]} 4. c4 {[%clk 0:02:59]}  d5 {[%clk 0:02:54]} 5. cxd5 {[%clk 0:02:56]}  Nxd5 {[%clk 0:02:54]} 6. g3 {[%clk 0:02:57]}  Bf5 {[%clk 0:02:46]} 7. Bg2 {[%clk 0:02:54]}  e6 {[%clk 0:02:45]} 8. O-O {[%clk 0:02:53]}  Qc7 {[%clk 0:02:38]} 9. Nc3 {[%clk 0:02:48]}  O-O-O {[%clk 0:02:34]} 10. Rc1 {[%clk 0:02:43]}  Kb8 {[%clk 0:02:32]} 11. Nh4 {[%clk 0:02:35]}  Bg6 {[%clk 0:02:27]} 12. Nxg6 {[%clk 0:02:34]}  hxg6 {[%clk 0:02:27]} 13. Nxd5 {[%clk 0:02:28]}  exd5 {[%clk 0:02:26]} 14. d4 {[%clk 0:02:29]}  cxd4 {[%clk 0:02:19]} 15. Bxd4 {[%clk 0:02:27]}  f6 {[%clk 0:02:14]} 16. Be3 {[%clk 0:02:22]}  g5 {[%clk 0:01:56]} 17. b4 {[%clk 0:02:14]}  Bxb4 {[%clk 0:01:53]} 18. Qb3 {[%clk 0:02:13]}  Qa5 {[%clk 0:01:43]} 19. Rxc6 {[%clk 0:01:58]}  bxc6 {[%clk 0:01:41]} 20. Rb1 {[%clk 0:01:55]}  c5 {[%clk 0:01:39]} 21. a3 {[%clk 0:01:46]}  d4 {[%clk 0:01:01]} 22. axb4 {[%clk 0:01:40]}  cxb4 {[%clk 0:00:51]} 23. Qf7 {[%clk 0:01:34]}  Qb6 {[%clk 0:00:44]} 24. Bd2 {[%clk 0:01:12]}  a5 {[%clk 0:00:42]} 25. Qxg7 {[%clk 0:01:08]}  Rhe8 {[%clk 0:00:39]} 26. Bf3 {[%clk 0:00:58]}  Rc8 {[%clk 0:00:20]} 27. Qg6 {[%clk 0:00:55]}  Red8 {[%clk 0:00:19]} 28. Qe4 {[%clk 0:00:53]}  Ka7 {[%clk 0:00:17]} 29. Bxb4 {[%clk 0:00:45]}  Re8 {[%clk 0:00:15]} 30. Qh7+ {[%clk 0:00:27]}  Rc7 {[%clk 0:00:14]} 31. Bc5 {[%clk 0:00:26]}  Qxc5 {[%clk 0:00:13]} 32. Rb7+ {[%clk 0:00:26]}  Ka6 {[%clk 0:00:12]} 33. Rxc7 {[%clk 0:00:24]}  Qb6 {[%clk 0:00:10]} 34. Rc6 {[%clk 0:00:22]}  Qxc6 {[%clk 0:00:10]} 35. Bxc6 {[%clk 0:00:22]} 1-0


[Site "https://www.chess.com"]

[Event "Titled Tuesday Blitz March 29 Early 2022"]
[White "Terletsky, Oleg"]
[Black "Migot, Tangi"]
[WhiteFideId "14116774"]
[BlackFideId "662445"]
[WhiteElo "2064"]
[BlackElo "2518"]
[Result "0-1"]
[Round "05"]
[TimeControl "180+1"]
[Date "2022.03.30"]
[WhiteClock "0:00:03"]
[BlackClock "0:00:20"]

1. e4 {[%clk 0:03:00]}  e5 {[%clk 0:02:59]} 2. Nf3 {[%clk 0:02:55]}  d6 {[%clk 0:03:00]} 3. d4 {[%clk 0:02:54]}  exd4 {[%clk 0:03:00]} 4. Nxd4 {[%clk 0:02:54]}  Nf6 {[%clk 0:03:01]} 5. Nc3 {[%clk 0:02:53]}  Be7 {[%clk 0:03:02]} 6. Bf4 {[%clk 0:02:51]}  O-O {[%clk 0:03:02]} 7. Qd2 {[%clk 0:02:51]}  c6 {[%clk 0:03:00]} 8. O-O-O {[%clk 0:02:49]}  b5 {[%clk 0:03:00]} 9. f3 {[%clk 0:02:48]}  Qa5 {[%clk 0:02:58]} 10. Kb1 {[%clk 0:02:45]}  b4 {[%clk 0:02:55]} 11. Nce2 {[%clk 0:02:40]}  d5 {[%clk 0:02:48]} 12. e5 {[%clk 0:02:35]}  Ne8 {[%clk 0:02:48]} 13. g4 {[%clk 0:02:30]}  Nc7 {[%clk 0:02:44]} 14. Nf5 {[%clk 0:02:24]}  Re8 {[%clk 0:02:37]} 15. Neg3 {[%clk 0:02:07]}  Ne6 {[%clk 0:02:34]} 16. Nxe7+ {[%clk 0:01:36]}  Rxe7 {[%clk 0:02:34]} 17. Nf5 {[%clk 0:01:36]}  Re8 {[%clk 0:02:33]} 18. Bh6 {[%clk 0:01:21]}  Qd8 {[%clk 0:02:18]} 19. Bd3 {[%clk 0:01:14]}  gxh6 {[%clk 0:02:01]} 20. Nxh6+ {[%clk 0:00:46]}  Kf8 {[%clk 0:01:57]} 21. h4 {[%clk 0:00:42]}  Ng7 {[%clk 0:01:47]} 22. f4 {[%clk 0:00:30]}  Nd7 {[%clk 0:01:39]} 23. Bxh7 {[%clk 0:00:24]}  a5 {[%clk 0:01:25]} 24. Bg8 {[%clk 0:00:21]}  f6 {[%clk 0:01:11]} 25. Bf7 {[%clk 0:00:14]}  Re7 {[%clk 0:01:06]} 26. Bg6 {[%clk 0:00:11]}  Ne6 {[%clk 0:00:59]} 27. exf6 {[%clk 0:00:07]}  Nxf6 {[%clk 0:00:59]} 28. f5 {[%clk 0:00:06]}  Nc5 {[%clk 0:00:55]} 29. Qd4 {[%clk 0:00:03]}  Qd6 {[%clk 0:00:52]} 30. g5 {[%clk 0:00:03]}  Ng8 {[%clk 0:00:36]} 31. Qh8 {[%clk 0:00:03]}  Rg7 {[%clk 0:00:37]} 32. Nxg8 {[%clk 0:00:03]}  Rxg8 {[%clk 0:00:33]} 33. Qh6+ {[%clk 0:00:03]}  Ke7 {[%clk 0:00:33]} 34. f6+ {[%clk 0:00:04]}  Kd8 {[%clk 0:00:33]} 35. Rhe1 {[%clk 0:00:03]}  Kc7 {[%clk 0:00:33]} 36. Qh7+ {[%clk 0:00:03]}  Bd7 {[%clk 0:00:32]} 37. Re7 {[%clk 0:00:04]}  Rh8 {[%clk 0:00:31]} 38. Qg7 {[%clk 0:00:04]}  Rag8 {[%clk 0:00:31]} 39. Qf7 {[%clk 0:00:04]}  Rf8 {[%clk 0:00:32]} 40. Qg7 {[%clk 0:00:05]}  Ne6 {[%clk 0:00:28]} 41. Rxe6 {[%clk 0:00:04]}  Qxe6 {[%clk 0:00:27]} 42. a3 {[%clk 0:00:04]}  bxa3 {[%clk 0:00:19]} 43. bxa3 {[%clk 0:00:05]}  Rfg8 {[%clk 0:00:19]} 44. Qf7 {[%clk 0:00:04]}  Rb8+ {[%clk 0:00:20]} 45. Ka1 {[%clk 0:00:03]}  Qe5+ {[%clk 0:00:20]} 0-1


[Site "https://www.chess.com"]

[Event "Titled Tuesday Blitz March 29 Early 2022"]
[White "Tristan, Leonardo"]
[Black "Kozak, Antoni"]
[WhiteFideId "113816"]
[BlackFideId "21832030"]
[WhiteElo "2404"]
[BlackElo "2236"]
[Result "1-0"]
[Round "05"]
[TimeControl "180+1"]
[Date "2022.03.29"]
[WhiteClock "0:00:15"]
[BlackClock "0:00:03"]

1. d4 {[%clk 0:03:00]}  d5 {[%clk 0:02:56]} 2. Nf3 {[%clk 0:03:00]}  Nf6 {[%clk 0:02:55]} 3. Bf4 {[%clk 0:03:01]}  c5 {[%clk 0:02:52]} 4. e3 {[%clk 0:03:01]}  cxd4 {[%clk 0:02:51]} 5. exd4 {[%clk 0:03:00]}  Nc6 {[%clk 0:02:51]} 6. Nbd2 {[%clk 0:03:00]}  Bf5 {[%clk 0:02:48]} 7. Bb5 {[%clk 0:03:00]}  e6 {[%clk 0:02:46]} 8. Ne5 {[%clk 0:02:59]}  Qc8 {[%clk 0:02:43]} 9. c4 {[%clk 0:02:55]}  a6 {[%clk 0:02:42]} 10. Bxc6+ {[%clk 0:02:55]}  bxc6 {[%clk 0:02:42]} 11. c5 {[%clk 0:02:55]}  Be7 {[%clk 0:02:36]} 12. Qa4 {[%clk 0:02:55]}  O-O {[%clk 0:02:23]} 13. Nxc6 {[%clk 0:02:42]}  Re8 {[%clk 0:02:23]} 14. O-O {[%clk 0:02:37]}  Bf8 {[%clk 0:02:19]} 15. Ne5 {[%clk 0:02:37]}  a5 {[%clk 0:02:10]} 16. h3 {[%clk 0:02:33]}  Qa6 {[%clk 0:02:02]} 17. Rfc1 {[%clk 0:02:27]}  Rab8 {[%clk 0:01:56]} 18. Nb3 {[%clk 0:02:14]}  Qe2 {[%clk 0:01:41]} 19. Qxa5 {[%clk 0:02:02]}  Qxb2 {[%clk 0:01:37]} 20. Qc3 {[%clk 0:01:53]}  Qe2 {[%clk 0:01:14]} 21. Re1 {[%clk 0:01:45]}  Qa6 {[%clk 0:01:10]} 22. Qa5 {[%clk 0:01:42]}  Qc8 {[%clk 0:01:05]} 23. Rec1 {[%clk 0:01:34]}  Ra8 {[%clk 0:01:03]} 24. Qb5 {[%clk 0:01:32]}  h6 {[%clk 0:00:45]} 25. Na5 {[%clk 0:01:30]}  Re7 {[%clk 0:00:33]} 26. Nec6 {[%clk 0:01:17]}  Rd7 {[%clk 0:00:29]} 27. a4 {[%clk 0:01:15]}  Ne4 {[%clk 0:00:21]} 28. f3 {[%clk 0:01:06]}  Nf6 {[%clk 0:00:17]} 29. Ra3 {[%clk 0:01:04]}  Ne8 {[%clk 0:00:17]} 30. Rb3 {[%clk 0:01:00]}  Nc7 {[%clk 0:00:17]} 31. Qb7 {[%clk 0:00:58]}  Na6 {[%clk 0:00:15]} 32. Qxc8 {[%clk 0:00:56]}  Rxc8 {[%clk 0:00:16]} 33. Ne5 {[%clk 0:00:52]}  Ra7 {[%clk 0:00:15]} 34. Nac6 {[%clk 0:00:51]}  Raa8 {[%clk 0:00:15]} 35. Rb6 {[%clk 0:00:46]}  f6 {[%clk 0:00:12]} 36. Nd7 {[%clk 0:00:39]}  h5 {[%clk 0:00:08]} 37. g4 {[%clk 0:00:37]}  hxg4 {[%clk 0:00:08]} 38. hxg4 {[%clk 0:00:38]}  Bg6 {[%clk 0:00:08]} 39. a5 {[%clk 0:00:36]}  Be8 {[%clk 0:00:08]} 40. Ndb8 {[%clk 0:00:35]}  Nxb8 {[%clk 0:00:07]} 41. Nxb8 {[%clk 0:00:36]}  Rxa5 {[%clk 0:00:07]} 42. Rxe6 {[%clk 0:00:35]}  Bf7 {[%clk 0:00:07]} 43. Rc6 {[%clk 0:00:35]}  Re8 {[%clk 0:00:06]} 44. Nd7 {[%clk 0:00:32]}  Ra2 {[%clk 0:00:05]} 45. Nxf8 {[%clk 0:00:17]}  Kxf8 {[%clk 0:00:05]} 46. Rb6 {[%clk 0:00:16]}  Ree2 {[%clk 0:00:04]} 47. Rb8+ {[%clk 0:00:15]}  Be8 {[%clk 0:00:04]} 48. c6 {[%clk 0:00:15]}  Rg2+ {[%clk 0:00:04]} 49. Kh1 {[%clk 0:00:15]}  Rgc2 {[%clk 0:00:02]} 50. Rxc2 {[%clk 0:00:14]}  Rxc2 {[%clk 0:00:03]} 51. c7 {[%clk 0:00:15]} 1-0


[Site "https://www.chess.com"]